[Event "Portuguese Rapid-ch 2022"]
[Site "Viseu"]
[Date "2022.06.10"]
[Round "2.2"]
[White "Sousa, Andre Ventura"]
[Black "Sarabando, Rodrigo Andias"]
[Result "1-0"]
[ECO "B80"]
[WhiteElo "2420"]
[BlackElo "1932"]
[Annotator "TA"]
[PlyCount "235"]
[EventDate "2022.06.09"]
[EventType "rapid"]
[EventCountry "POR"]
[SourceTitle "playchess.com"]
[Source "ChessBase"]
[SourceQuality "1"]
[TimeControl "600+5"]

{[%evp 17,235,24,27,0,-11,-6,0,-9,0,0,42,11,3,14,29,0,12,-9,0,-40,-31,-22,-23,-33,-27,-51,-28,-62,-47,-81,-41,-52,-66,-84,-83,-74,-34,-68,0,-35,0,0,0,0,119,-133,-140,-130,-146,-135,-147,-147,-164,-154,-85,-479,-75,-178,-114,-274,-274,-274,-274,-269,-120,-115,-112,-132,-80,-112,-112,-112,-83,-85,0,-111,-74,-101,-85,-85,-72,-83,57,57,66,46,158,158,312,261,245,129,366,366,374,374,400,400,382,377,366,359,359,359,353,334,334,236,237,181,181,159,139,131,125,124,124,124,155,155,155,155,155,155,359,0,155,0,155,0,155,0,352,0,29990,0,311,155,148,148,133,133,133,133,133,133,133,133,133,133,393,81,81,81,133,125,81,81,81,81,1865,1381,1991,1636,5868,2030,5043,5023,5531,5531,29967,29972,29972,29975,29973,0,12794,1868,5496,0,1914,154,4134,3256,29962,5820,29975,29976,29980,29981,29981,29982,29983,29984,29986,29987,29987,29988,29988,29981,29981,29982,29982,29983,29983,29984,29985,29986,29986,29987,29987,29988,29989,29990,29991,29992,29992,29993,29995,29996]} 1. e4 c5 2. Nf3 e6 3. d4 cxd4 4. Nxd4 Nf6 5. Nc3 d6 6. g3 Be7 7. Bg2 O-O 8. O-O Nc6 {[%cal Bb8c6,Bc6e5,Be5c4][%mdl 32]} 9. Re1 Bd7 10. Ndb5 {B80: Sicilian Scheveningen: 6 g3 and 6 Be3, including English Attack.} Qb8 11. Bf4 {[%cal Rf4d6]} Ne5 12. a4 {The position is equal.} a6 13. Nd4 {[#]} Nc4 $146 ({Predecessor:} 13... Rc8 14. Bxe5 dxe5 15. Nb3 Bb4 16. Re3 Bxc3 17. bxc3 Rc4 18. a5 Qc7 19. Qd2 Rc8 {0-1 (69) Roberson,P (2420)-Heimann,M (2367) Chess.com INT 2019}) 14. Bc1 (14. b3 $5 {[%cal Rb3c4]} Ne5 15. Bd2 $11) 14... Qc7 15. b3 Ne5 16. Bb2 Rfd8 17. h3 Nc6 18. g4 Nxd4 19. Qxd4 h6 20. a5 Rac8 {[%cal Od6d5]} 21. Re2 Bc6 22. Qd3 Nd7 23. Qg3 {[%cal Oc3d5]} Bf6 24. Rd2 Ne5 25. Nd1 Qe7 26. c4 Rd7 27. Ne3 {[%cal Oe3d5]} Rcd8 (27... Bh4 $15 28. Qh2 Ng6) 28. Rad1 {[%cal Oe3d5]} Bh4 29. Qh2 Bf6 30. Ba3 Bh4 (30... Ng6 $11) 31. Nd5 $2 {[%mdl 8192]} exd5 $17 32. exd5 {[#]} Ba4 {[%mdl 512]} 33. bxa4 Nxc4 34. Rd3 Nxa3 ({Not} 34... Nxa5 35. Re3 Qf8 36. Rc3 $15) 35. Rxa3 Rc7 (35... Qe2 $142 36. Bf3 Qc2) 36. Re3 $2 {[%mdl 8192] [#]} (36. Qf4 $17) 36... Qf6 $2 (36... Bxf2+ $1 $19 {[%mdl 512]} 37. Kxf2 Rc2+ 38. Kf3 Qf6+ 39. Qf4 Rf2+ $3 {[%mdl 512]} 40. Kxf2 Qxf4+ 41. Bf3 f5) 37. Be4 (37. Rf3 $17 Qb2 38. Qf4) 37... Rc3 ({Better is} 37... Rc4 $19 38. f3 Rxa4) 38. Rde1 $2 (38. Rxc3 $17 Qxc3 39. Qf4) 38... Rxe3 $19 39. Rxe3 Rc8 $1 {( -> ...Rc1+)} 40. Re1 {Inhibits Rc1.} Bg5 (40... g6 $19 {has better winning chances. And now ...Rc4 would win.} 41. Rf1 Rc4) 41. Bf5 $17 Rd8 42. Qg3 Bh4 (42... g6 $142 43. Be4 Qd4) 43. Qe3 {[%cal Oe3e8]} g6 44. Bb1 Bg5 45. Qb3 Bh4 (45... Rd7 $17) 46. Re2 {Active counter play!} (46. Qe3 $1 $11) 46... Rd7 47. Qc4 Kg7 48. Kg2 Bg5 49. Qc8 Rd8 (49... Re7 $17 50. Rxe7 Qxe7) 50. Qxb7 $14 Qd4 51. Qxa6 Qxd5+ (51... Rb8 $14 52. Be4 (52. Qxd6 Rxb1 53. Re8 Qb4 $19) 52... Re8) 52. Be4 $16 Qc5 (52... Qd1 $16 {is a better defense.} 53. Bf3 Qxa4) 53. Qb6 Rc8 54. Rc2 ({White must play} 54. Qb5 $1 $18) 54... Qxb6 (54... Qe5 $16 {keeps fighting.} 55. Rxc8 Qxe4+ 56. f3 Qxa4) 55. axb6 $18 Rxc2 56. Bxc2 $16 {[%mdl 4096] Endgame KB-KB} Bd8 57. a5 Kf6 58. Kf3 Ke5 59. Bb3 d5 60. Ke3 Kd6 61. Kd4 Bf6+ 62. Kd3 Bd8 63. Bd1 g5 64. Bf3 {Threatens to win with b7.} Kc5 65. b7 Bc7 66. a6 {a7 would kill now.} Bb8 67. Kc3 f6 68. Bg2 Ba7 69. Kb3 Bb8 70. Ka4 Ba7 $2 {[#]} (70... Kb6 $16 {was worth a try.} 71. Bf1 (71. Bxd5 Kxa6 72. Be4 Kb6 $16) 71... Bc7) 71. Kb3 (71. Bxd5 $1 $18 {[%mdl 512] Bf7 is the strong threat.} Bb8 (71... Kb6 72. Bc4) 72. Be4) 71... Bb8 $1 72. Kc3 Ba7 $1 73. Kb3 Bb8 $1 74. Ka4 $2 (74. Bf1 $16) 74... Ba7 $1 $18 75. Ka5 Bb6+ $1 76. Ka4 Ba7 {[#]} 77. Bf1 (77. Bxd5 $1 $18 {[%mdl 512] Strongly threatening Bf7.} Bb8 (77... Kb6 78. Bc4) 78. Be4) 77... Bb8 78. Bd3 Ba7 79. Bf5 Kb6 80. Be6 Kxa6 81. Bxd5 Kb6 82. Kb4 Bb8 83. Kc4 Be5 $2 {[%mdl 8192]} (83... Ba7 $16 84. Kd3 Bb8) 84. Bg2 $2 (84. Kd3 $1 $18 {and the rest is easy. Hoping for Ke4.} Bc7 85. Kc4) 84... Kc7 $16 85. Kc5 Bf4 ({Black should play} 85... Bh2) 86. Bd5 {Black must now prevent Kd4.} Be5 87. Be4 Bf4 88. Kd4 Bh2 $2 {[%mdl 8192] [#]} (88... Be5+ $16 89. Kc5 Bb2) 89. Bd5 $1 $18 Kd7 {[#]} 90. Ke4 $1 Bf4 91. Kf5 Ke7 92. Kg6 Be5 93. Kxh6 {White threatens Kg6 and mate.} Bf4 94. Kg6 Be5 95. Kf5 Bd6 96. Kg6 $2 (96. f4 {mates} Kd7 97. fxg5 fxg5 98. Kxg5 Bg3 99. Kf5 Kc7 100. g5 Bd6 101. g6) 96... Bf4 $2 {[%mdl 8192]} (96... Be5 $11 97. Kf5 Bc7) 97. Be4 (97. f3 $142 Bb8 98. Kf5) 97... Be5 98. Bd5 (98. Kf5 $142 Bc7 99. f4 gxf4 100. h4) 98... Bf4 $1 99. Kh5 $2 (99. f3 $18 {aiming for Kf5.} Bb8 100. Kf5) 99... Be5 $2 (99... Kf8 $16 100. Kg6 Ke7) 100. h4 gxh4 101. Kxh4 {Intending Kh5 and mate.} Bf4 102. Kh5 {White mates.} Bc7 103. Kg6 Bf4 104. Kf5 Bc7 105. f4 {[%cal Bf2f4,Bf4g5,Bg5g6][%mdl 32]} Bd6 106. g5 fxg5 107. fxg5 Kf8 108. g6 Kg7 109. Ke6 Bb8 110. Be4 Bf4 111. Kd7 Kf6 112. Kc8 Bd6 113. b8=Q Bxb8 114. Kxb8 Kg7 115. Kc7 Kf6 116. Kd6 Kg7 117. Ke5 Kg8 118. Kf6 {What a bad dream for Black.  Weighted Error Value: White=0.46/Black=0.46} 1-0

[Event "Portuguese Rapid-ch 2022"]
[Site "Viseu"]
[Date "2022.06.10"]
[Round "2.3"]
[White "Guia, Artur Solovyov Eloy"]
[Black "Veiga, Jose Francisco R P N"]
[Result "1/2-1/2"]
[ECO "A45"]
[WhiteElo "1916"]
[BlackElo "2377"]
[Annotator "TA"]
[PlyCount "141"]
[EventDate "2022.06.09"]
[EventType "rapid"]
[EventCountry "POR"]
[SourceTitle "playchess.com"]
[Source "ChessBase"]
[SourceQuality "1"]
[TimeControl "600+5"]

{[%evp 9,141,0,0,0,0,0,0,-8,68,47,70,7,0,0,7,0,0,-26,12,2,20,22,36,16,62,54,41,24,23,20,22,6,9,12,10,0,0,0,0,0,0,0,59,58,71,60,68,77,50,64,77,88,85,14,23,16,16,27,17,0,4,0,18,18,17,0,0,0,13,0,0,0,0,0,0,0,0,0,0,0,0,0,0,0,0,0,0,0,0,0,0,0,0,0,0,0,0,0,0,0,0,0,0,0,0,0,0,0,0,0,0,0,0,0,0,0,0,0,0,0,0,0,0,0,0,0,0,0,0,0,0,0,0,0]} 1. d4 {[%emt 0:00:05]} Nf6 {[%emt 0:00:04]} 2. Bg5 {[%emt 0:00:02]} d5 {[%emt 0:00:07]} 3. e3 {[%emt 0:00:04]} e6 {[%emt 0:00:13]} 4. Nf3 {[%emt 0:00:21]} c5 {[%emt 0:00:11]} 5. dxc5 {[%emt 0:01:26]} Bxc5 {[%emt 0:00:09]} 6. c4 {[%emt 0:00:13] D03: 1 d4 d5 2 Nf3 Nf6 3 Bg5, including Torre Attack with early ...d5.} O-O {[%emt 0:00:40]} 7. Nc3 {[%emt 0:00:53]} dxc4 {[%emt 0:00:22]} 8. Bxc4 {[%emt 0:00:06]} Nc6 {[%emt 0:00:16]} (8... Qxd1+ $11 9. Rxd1 Nbd7) 9. O-O {[%emt 0:00:17]} a6 {[%emt 0:00:02] [#]} 10. Qxd8 $146 {[%emt 0:00:17]} (10. Qc2 $14) ({Predecessor:} 10. a3 b5 11. Be2 Bb7 12. Rc1 Be7 13. Qc2 Rc8 14. Rfd1 Qb6 15. Qb1 {1-0 (36) Przybylski,W (2321)-Tereladze,S (2141) Chess.com INT 2021}) 10... Rxd8 $11 {[%emt 0:00:02]} 11. Rfd1 {[%emt 0:00:02]} Bd7 {[%emt 0:00:22]} 12. Rac1 {[%emt 0:01:39]} Be7 {[%emt 0:00:18]} 13. Nd4 {[%emt 0:00:34]} Ne5 {[%emt 0:00:19]} 14. Be2 {[%emt 0:00:07]} h6 {[%emt 0:00:37]} 15. Bf4 {[%emt 0:00:19][%cal Bg5f4,Bf4g3,Bg3e5,Be5c7][%mdl 32]} Ng6 {[%emt 0:00:07]} 16. Bg3 {[%emt 0:00:16]} e5 {[%emt 0:02:05]} (16... Bb4 $11) 17. Nf3 $14 {[%emt 0:00:07]} e4 {[%emt 0:00:03]} 18. Ne5 {[%emt 0:00:10]} Nxe5 {[%emt 0:00:05]} 19. Bxe5 {[%emt 0:00:02]} Bc6 {[%emt 0:00:01]} 20. Bc7 Rxd1+ {[%emt 0:00:29]} 21. Rxd1 {[%emt 0:00:38]} Rc8 {[%emt 0:00:04]} 22. Bb6 {[%emt 0:00:03]} Nd7 {[%emt 0:00:27]} 23. Bd4 {[%emt 0:00:03]} Nc5 {[%emt 0:00:31]} 24. Bxc5 {[%emt 0:00:30]} Bxc5 {[%emt 0:00:05]} 25. Bg4 {[%emt 0:00:02]} Rc7 {[%emt 0:01:14]} (25... Re8 $11) 26. Bf5 $1 {[%emt 0:00:20]} Bf8 {[%emt 0:00:49]} 27. h3 {[%emt 0:01:35] White is more active.} ({But not} 27. Nxe4 $2 g6 28. Bxg6 (28. Nf6+ $2 Kg7 $19) 28... fxg6 $19) ({Reject} 27. Bxe4 Bxe4 28. Nxe4 Rc2 $11) 27... g6 {[%emt 0:01:34]} 28. Bxe4 {[%emt 0:00:02]} Bxe4 {[%emt 0:00:04]} 29. Nxe4 {[%emt 0:00:01][%mdl 4096] Endgame KRB-KRN} Bg7 {[%emt 0:00:06] Inhibits Nf6+.} 30. b3 {[%emt 0:00:31]} f5 {[%emt 0:00:03]} 31. Nd2 {[%emt 0:00:48]} (31. Ng3 $16) 31... Rc2 $1 $11 {[%emt 0:00:20]} 32. a3 {[%emt 0:00:12]} Ra2 {[%emt 0:00:12]} 33. a4 {[%emt 0:00:27]} Rb2 {[%emt 0:00:02]} 34. Kf1 {[%emt 0:00:04] The position is equal.} Bc3 {[%emt 0:00:03]} 35. Ke2 {[%emt 0:00:24]} Bxd2 {[%emt 0:00:01]} 36. Rxd2 {[%emt 0:00:01]} Rxb3 {[%emt 0:00:02] KR-KR} 37. Rd4 {[%emt 0:00:10]} Rb2+ {[%emt 0:00:14]} 38. Kf3 {[%emt 0:00:01]} Kg7 {[%emt 0:00:03]} 39. e4 {[%emt 0:00:15]} fxe4+ {[%emt 0:00:06]} 40. Rxe4 {[%emt 0:00:01]} a5 {[%emt 0:00:09]} 41. Re5 {[%emt 0:00:11]} b6 {[%emt 0:00:13]} 42. Re4 {[%emt 0:00:01]} Rb3+ {[%emt 0:00:04]} 43. Ke2 {[%emt 0:00:01]} Kf6 {[%emt 0:00:01]} 44. Kd2 {[%emt 0:00:12]} Ra3 {[%emt 0:00:02]} 45. Rc4 {[%emt 0:00:07]} Ra2+ {[%emt 0:00:16]} 46. Ke3 {[%emt 0:00:03]} Rb2 {[%emt 0:00:02]} 47. g3 {[%emt 0:00:07]} h5 {[%emt 0:00:16]} 48. h4 {[%emt 0:00:04]} Kf5 {[%emt 0:00:05]} 49. Rf4+ {[%emt 0:00:05]} Ke5 {[%emt 0:00:02]} 50. Rc4 {[%emt 0:00:02]} Rb3+ {[%emt 0:00:06]} 51. Kd2 {[%emt 0:00:05]} Kd5 {[%emt 0:00:08]} 52. Rf4 {[%emt 0:00:07]} Ke5 {[%emt 0:00:10]} 53. Rc4 {[%emt 0:00:02]} Rf3 {[%emt 0:00:02]} 54. Ke2 {[%emt 0:00:03]} Rf6 {[%emt 0:00:01]} 55. Ke3 {[%emt 0:00:03]} Kd5 {[%emt 0:00:02]} 56. Rd4+ {[%emt 0:00:05]} Kc5 {[%emt 0:00:01][%cal Of6f2] Hoping for ...Rxf2!} 57. Re4 {[%emt 0:00:03]} b5 {[%emt 0:00:22]} 58. Re5+ {[%emt 0:00:04]} Kb4 {[%emt 0:00:01]} 59. Rxb5+ {[%emt 0:00:01]} Kxa4 {[%emt 0:00:01]} 60. Rb8 {[%emt 0:00:01]} Ka3 {[%emt 0:00:09]} 61. f3 {[%emt 0:00:07]} a4 {[%emt 0:00:06]} 62. g4 {[%emt 0:00:01]} Ka2 {[%emt 0:00:05]} 63. gxh5 {[%emt 0:00:03]} gxh5 {[%emt 0:00:01]} 64. f4 {[%emt 0:00:09]} a3 {[%emt 0:00:08]} 65. Ke4 {[%emt 0:00:02]} Rg6 {[%emt 0:00:00]} 66. f5 {[%emt 0:00:04]} Rg4+ {[%emt 0:00:01]} 67. Ke5 {[%emt 0:00:01] [#] Intending f6 and mate.} Rxh4 {[%emt 0:00:02]} 68. f6 {[%emt 0:00:00] White threatens f7 and mate.} Rh2 {[%emt 0:00:24]} 69. f7 {[%emt 0:00:02]} Rf2 {[%emt 0:00:10]} 70. f8=Q {[%emt 0:00:03]} Rxf8 {[%emt 0:00:02]} 71. Rxf8 {[%emt 0:00:02] Weighted Error Value: White=0.09 (flawless) /Black=0.09 (flawless)} 1/2-1/2

[Event "Portuguese Rapid-ch 2022"]
[Site "Viseu"]
[Date "2022.06.10"]
[Round "2.4"]
[White "Fernandes, Antonio"]
[Black "Bartolo, Filipe Diogo Correia"]
[Result "1-0"]
[ECO "A45"]
[WhiteElo "2314"]
[BlackElo "1811"]
[Annotator "TA"]
[PlyCount "75"]
[EventDate "2022.06.09"]
[EventType "rapid"]
[EventCountry "POR"]
[SourceTitle "playchess.com"]
[Source "ChessBase"]
[SourceQuality "1"]
[TimeControl "600+5"]

{[%evp 10,75,1,0,22,12,31,4,10,-28,7,0,0,-16,62,66,72,63,150,155,166,156,158,156,163,146,195,194,195,191,307,299,312,315,343,331,348,335,395,375,397,392,421,389,397,366,389,359,433,0,376,374,384,345,397,400,420,386,398,329,538,500,1100,1096,1172,1167,988,889]} 1. d4 Nf6 2. Bg5 Ne4 3. Bh4 c5 4. f3 g5 5. fxe4 gxh4 6. e3 Nc6 {A45: Trompowsky Attack.} (6... Bh6 $5 {[%cal Rh6e3]}) 7. c3 Qb6 8. Qb3 Bh6 {The position is equal.} 9. Kf2 Qc7 10. Nf3 {[#]} d6 $146 ({Predecessor:} 10... h3 11. g3 e6 12. Nbd2 a5 13. a4 b6 14. Bxh3 Ne7 15. Rhe1 Bb7 16. Qc2 O-O {0-1 (27) Moreno,G-Mallassagne,F Montpellier 1998}) 11. Nxh4 e5 ({Black should play} 11... O-O $1 $11) 12. d5 $14 Ne7 13. Bb5+ Bd7 {[#] Black is on the road to losing.} (13... Kd8 $14) 14. Qa4 $1 $16 Rg8 15. Bxd7+ Qxd7 16. Qxd7+ Kxd7 17. Nd2 Rg4 (17... Bg5 $16 {might work better.}) 18. g3 $18 Rf8 19. Ke2 Bg5 ({Less strong is} 19... f5 20. Nxf5 Nxf5 21. exf5) (19... Rgg8 $142 20. Raf1 Rg4) 20. Kf3 h5 21. h3 Rxh4 22. gxh4 Bxh4 23. Ke2 Ng6 24. Rhg1 Be7 25. Raf1 Ke8 26. Rf5 Rh8 27. Nf3 Rh7 28. Ng5 Rg7 29. Nf3 Rh7 $1 30. a4 b6 31. Kf1 Rh8 32. Ng5 Rf8 33. Nh7 Rh8 34. Nf6+ Kd8 $2 (34... Bxf6 35. Rxf6 Ke7) 35. Nxh5 {[%cal Of5f7] White is clearly winning.} Nh4 {[#]} (35... Rh7 $142 36. Ng3 c4) 36. Rxf7 $1 Rxh5 (36... a6 37. Ng7) 37. Rg8+ Kd7 38. Rgg7 {Weighted Error Value: White=0.22 (precise) /Black=0.38} 1-0

[Event "Portuguese Rapid-ch 2022"]
[Site "Viseu"]
[Date "2022.06.10"]
[Round "2.5"]
[White "De Carvalho, Vitor Augusto Poncia"]
[Black "Santos, Jose Guilherme B Lim"]
[Result "0-1"]
[ECO "B51"]
[WhiteElo "1904"]
[BlackElo "2365"]
[Annotator "TA"]
[PlyCount "40"]
[EventDate "2022.06.09"]
[EventType "rapid"]
[EventCountry "POR"]
[SourceTitle "playchess.com"]
[Source "ChessBase"]
[SourceQuality "1"]
[TimeControl "600+5"]

{[%evp 12,40,18,10,14,14,38,29,62,0,58,12,24,15,16,-33,62,0,0,0,0,-43,-33,-40,-13,-26,-26,-23,-8,-1020,-1004]} 1. e4 c5 2. Nf3 d6 3. Bb5+ Nd7 4. c3 Ngf6 5. Qe2 a6 6. Ba4 b5 7. Bc2 Bb7 {B51: Sicilian: Moscow Variation (3 Bb5+) without 3...Bd7.} 8. O-O e5 9. d4 Rc8 {White has an edge.} 10. Re1 {[#]} (10. d5 $14) 10... Be7 $146 ({Black should play} 10... cxd4 $11 11. cxd4 h6) ({Predecessor:} 10... Qc7 11. Bd3 Be7 12. Nbd2 O-O 13. Nf1 Rfe8 14. Ng3 g6 15. d5 c4 16. Bc2 Bf8 {1-0 (36) Muetsch,A (2146)-Schulze,L (2187) Bad Blankenburg 2018}) 11. a4 (11. d5 $14 {is superior.}) 11... cxd4 $1 $11 12. cxd4 b4 13. Bg5 (13. Bd3 $11) 13... Qb6 (13... h6 $15 14. Bh4 g5) 14. dxe5 (14. a5 $14 Qc7 15. Bd3) 14... dxe5 ({Much less strong is} 14... Nxe5 15. Nxe5 dxe5 16. a5 $14) 15. a5 Qc7 16. Bd3 Nc5 $36 {[%mdl 2048] Black is pushing.} 17. Rc1 O-O {[%cal Rf6e4]} 18. Nbd2 Qd8 19. Bb1 Ne6 20. Be3 $2 {[%mdl 8192] [#]} Rxc1+ {Weighted Error Value: White=0.71/Black=0.24 (precise)} 0-1

[Event "Portuguese Rapid-ch 2022"]
[Site "Viseu"]
[Date "2022.06.10"]
[Round "2.6"]
[White "Padeiro, Jose"]
[Black "Farias, David Nuno M E"]
[Result "1-0"]
[ECO "A04"]
[WhiteElo "2207"]
[BlackElo "1948"]
[Annotator "TA"]
[PlyCount "85"]
[EventDate "2022.06.09"]
[EventType "rapid"]
[EventCountry "POR"]
[SourceTitle "playchess.com"]
[Source "ChessBase"]
[SourceQuality "1"]
[TimeControl "600+5"]

{[%evp 9,85,6,7,0,0,1,2,3,1,24,0,12,51,65,59,44,49,43,50,45,42,25,51,35,54,32,76,64,70,62,76,78,86,86,86,89,94,82,89,91,116,108,114,110,121,105,116,103,96,96,122,120,129,106,106,94,106,122,113,114,116,122,521,313,512,482,549,520,553,448,443,324,702,687,664,653,951,892]} 1. Nf3 c5 2. b3 Nf6 3. Bb2 e6 4. c4 Be7 5. e3 Nc6 6. Nc3 {A30: Symmetrical English: Double Fianchetto and Hedgehog.} O-O 7. d4 cxd4 8. Nxd4 {[#] The position is equal.} Qa5 $146 ({Predecessor:} 8... d5 9. Nxc6 bxc6 10. Be2 Bb7 11. O-O Qa5 12. Qc2 Rac8 13. Rfd1 Rfd8 14. Na4 Ne4 {1-0 (29) Bartel,M (2616)-Blanco Acevedo,C (2304) Warsaw 2021}) 9. a3 Nxd4 10. Qxd4 Qc5 (10... b6 {feels hotter.} 11. Bd3 Bb7 12. Qh4 Qh5) 11. Qxc5 $1 Bxc5 12. Be2 d5 13. cxd5 exd5 14. O-O Be6 15. Nb5 Rac8 16. Rac1 a6 17. Nd4 (17. Bxf6 $5 gxf6 18. b4 $14) 17... Bxd4 18. Bxd4 Ne4 19. Rfd1 {Prevents Nd2.} Rxc1 20. Rxc1 Nd2 21. Bd1 {f3 is the strong threat. This bishop pair is nice.} Ne4 22. f3 Nd6 23. a4 Rc8 24. Rxc8+ Bxc8 $16 {[%mdl 4096] Endgame KBB-KBN} 25. Bc5 Ne8 26. Kf2 Bf5 27. g4 Bg6 28. b4 {[#] Threatens to win with Bb3.} Bd3 29. Ke1 Nc7 30. Kd2 Bc4 31. Bc2 Ne6 32. Bd6 f6 33. f4 h6 34. h4 {[%cal Bh2h4,Bh4h5][%mdl 32]} Kf7 35. h5 b5 $2 {[%mdl 8192] [#] Loses the game.} (35... Ke8 $16) 36. Bg6+ $18 Kg8 37. a5 Bf1 38. Be8 Nd8 39. Be7 Ne6 40. Bc6 Bg2 (40... Kf7) 41. Bb7 {White is clearly winning.} Kf7 42. Bd6 Bh3 43. Bxa6 {Weighted Error Value: White=0.09 (flawless) /Black=0.37} 1-0

[Event "Portuguese Rapid-ch 2022"]
[Site "Viseu"]
[Date "2022.06.10"]
[Round "2.7"]
[White "Ribeiro, Gustavo"]
[Black "Martins, Bruno Andre Leite"]
[Result "0-1"]
[ECO "A16"]
[WhiteElo "1867"]
[BlackElo "2327"]
[Annotator "TA"]
[PlyCount "72"]
[EventDate "2022.06.09"]
[EventType "rapid"]
[EventCountry "POR"]
[SourceTitle "playchess.com"]
[Source "ChessBase"]
[SourceQuality "1"]
[TimeControl "600+5"]

{[%evp 12,72,44,6,24,20,39,7,24,12,23,0,0,-9,-4,-37,-41,-31,-31,-55,-49,-54,-26,-52,16,8,0,0,17,-72,-64,-156,-150,-305,-310,-298,-302,-416,-164,-167,-150,-1114,-1143,-1129,-1123,-1105,-1117,-1107,-1102,-5302,-1361,-2322,-5143,-1436,-1187,-29993,-29985,-29983,-29984,-5722,-1692,-29997,-29998]} 1. c4 {[%emt 0:00:01]} Nf6 {[%emt 0:00:07]} 2. Nc3 {[%emt 0:00:01]} g6 {[%emt 0:00:12]} 3. e4 {[%emt 0:00:03]} d6 {[%emt 0:00:01]} 4. g3 {[%emt 0:00:03]} Bg7 {[%emt 0:00:02]} 5. Bg2 {[%emt 0:00:02]} O-O {[%emt 0:00:03]} 6. Nge2 {[%emt 0:00:01]} c6 {[%emt 0:01:06]} 7. d3 {[%emt 0:00:21]} a6 {[%emt 0:00:03] A16: English Opening: 1...Nf6 with ...d5.} 8. O-O {[%emt 0:00:08]} b5 {[%emt 0:00:44]} 9. f4 {[%emt 0:00:03]} e5 {[%emt 0:00:09] The position is equal.} 10. h3 {[%emt 0:00:07]} exf4 {[%emt 0:01:05]} 11. gxf4 {[%emt 0:00:12] [#]} Qb6+ $146 {[%emt 0:00:34]} ({Predecessor:} 11... Nh5 12. Be3 Bb7 13. a3 Nd7 14. Rc1 Re8 15. Qd2 Qe7 {½-½ (15) Lilov,V (2411)-Petrov,M (2521) Plovdiv 2012}) 12. Kh2 {[%emt 0:00:02]} Nbd7 {[%emt 0:00:22]} 13. Rf3 {[%emt 0:00:15]} Re8 {[%emt 0:00:27]} 14. Be3 {[%emt 0:00:06]} Qb8 {[%emt 0:00:52]} 15. Rg3 {[%emt 0:00:51]} Bb7 {[%emt 0:00:21][%cal Od6d5]} 16. Bf3 {[%emt 0:00:46]} Qd8 {[%emt 0:00:52]} (16... c5 $5 {[%cal Rb5c4]}) 17. Qd2 {[%emt 0:00:20]} Qa5 {[%emt 0:00:23]} (17... bxc4 $1 $15 18. dxc4 c5) 18. Rag1 $11 {[%emt 0:00:49]} bxc4 {[%emt 0:01:10]} 19. dxc4 {[%emt 0:00:05]} Rad8 {[%emt 0:00:58]} 20. b4 {[%emt 0:00:59] [#]} ({Of course not} 20. Qxd6 Ne5 $1 21. fxe5 Rxd6 22. exd6 Nd7 $17) (20. b3 $11) 20... Qc7 $1 $17 {[%emt 0:00:14]} (20... Qxb4 $2 21. Rb1 Qxc4 22. Rxb7 $18) 21. Nd4 {[%emt 0:01:00]} (21. c5 $15 dxc5 22. bxc5) 21... c5 {[%emt 0:00:36]} 22. bxc5 {[%emt 0:00:02]} (22. Nf5 $17 {was forced.} cxb4 23. Nd5 Bxd5 24. Nxg7 Kxg7 25. exd5 (25. cxd5 $2 Nxe4 26. Bxe4 Rxe4 $19)) 22... dxc5 $19 {[%emt 0:00:10]} 23. Nf5 {[%emt 0:00:12] [#]} Ne5 $1 {[%emt 0:00:14][%mdl 512]} 24. Nd5 {[%emt 0:02:35]} (24. Qf2 Nxf3+) 24... Nxf3+ {[%emt 0:00:03] Really sharp!} (24... Bxd5 25. cxd5 Nxf3+ 26. Rxf3 Nxe4) 25. Rxf3 {[%emt 0:00:03]} Nxe4 {[%emt 0:00:17][%cal Bf6e4,Be4d2,Bd2f3][%mdl 32]} 26. Nxg7 $2 {[%emt 0:01:10] This costs White the game.} (26. Qb2 $17 Bxb2 27. Nxc7) 26... Nxd2 {[%emt 0:00:13]} 27. Nxe8 {[%emt 0:00:01]} Nxf3+ {[%emt 0:00:02]} 28. Kg3 {[%emt 0:00:02] [#]} Rxe8 $1 {[%emt 0:00:13]} 29. Nxc7 {[%emt 0:00:25]} Rxe3 {[%emt 0:00:02]} 30. Rd1 {[%emt 0:00:01]} Nd4+ {[%emt 0:00:07]} 31. Kf2 {[%emt 0:00:03]} Re2+ {[%emt 0:00:04]} 32. Kg1 {[%emt 0:00:06]} Bg2 {[%emt 0:00:23][%cal Rd4f3]} 33. Kh2 {[%emt 0:00:09]} Be4+ {[%emt 0:00:02]} 34. Kg1 {[%emt 0:00:06]} Rg2+ {[%emt 0:00:18]} 35. Kf1 {[%emt 0:00:06]} Rh2 {[%emt 0:00:02] ( -> ...Rh1+)} 36. Re1 {[%emt 0:00:07]} Bd3+ {[%emt 0:00:05] Weighted Error Value: White=1.10/Black=0.24 (precise)} 0-1